bitfinex/quotes_BTCUSD_20260127
["timestamp","ask_amount","ask_price","bid_price","bid_amount"]
[1769484585295,0.11273161,88823.0,88811.0,0.30717127]
[1769484585608,0.11273161,88822.0,88811.0,0.30717127]
[1769484585844,0.11273161,88821.0,88811.0,0.30717127]
[1769484586038,0.11273161,88820.0,88811.0,0.30717127]
[1769484586204,0.11273161,88819.0,88811.0,0.30717127]
[1769484586417,0.11273161,88818.0,88811.0,0.30717127]
[1769484586757,0.11273161,88817.0,88811.0,0.30717127]
[1769484586902,0.02301588,88827.0,88811.0,0.30717127]
[1769484587097,0.11273055,88823.0,88811.0,0.30717127]
[1769484587305,0.11273055,88822.0,88811.0,0.30717127]
[1769484587506,0.11273055,88821.0,88811.0,0.35110326]
[1769484587727,0.11273055,88820.0,88811.0,0.35110326]
[1769484587962,0.11273055,88819.0,88811.0,0.35110326]
[1769484588183,0.11273055,88818.0,88811.0,0.30717127]
[1769484588385,0.02301588,88827.0,88811.0,0.30717127]
[1769484588713,0.1127249,88823.0,88811.0,0.30717127]
[1769484588962,0.1127249,88822.0,88811.0,0.30717127]
[1769484589166,0.1127249,88821.0,88811.0,0.30717127]
[1769484589346,0.1127249,88820.0,88811.0,0.30717127]
[1769484589671,0.02301588,88827.0,88811.0,0.30717127]
[1769484589672,0.1127249,88819.0,88811.0,0.30717127]
[1769484589856,0.02301588,88827.0,88811.0,0.30717127]
[1769484590153,0.09028321,88831.0,88811.0,0.28249354]
[1769484590154,0.11272459,88823.0,88811.0,0.28249354]
[1769484590474,0.0004,88831.0,88814.0,0.02467773]
[1769484590664,0.11270495,88823.0,88815.0,0.30717127]
[1769484590882,0.0004,88831.0,88815.0,0.30717127]
[1769484591056,0.11270499,88823.0,88815.0,0.30717127]
[1769484591260,0.0004,88831.0,88815.0,0.30717127]
[1769484593801,0.31879907,88834.0,88815.0,0.28249354]
[1769484593802,0.17007594,88834.0,88815.0,0.28249354]
[1769484593979,0.11266775,88833.0,88816.0,0.02359635]
[1769484594190,0.11266775,88832.0,88816.0,0.02359635]
[1769484594511,0.11266775,88831.0,88816.0,0.02359635]
[1769484594849,0.11266775,88830.0,88816.0,0.05655554]
[1769484595050,0.11266775,88829.0,88820.0,0.37418681]
[1769484595310,0.02300669,88836.0,88820.0,0.67225847]
[1769484595538,0.11264539,88835.0,88820.0,0.67225847]
[1769484595714,0.11264539,88834.0,88822.0,0.29807166]
[1769484595867,0.11264539,88833.0,88823.0,0.38891654]
[1769484596072,0.250143,88839.0,88823.0,0.02359635]
[1769484596408,0.131725,88837.0,88818.0,0.02382315]
[1769484596586,0.14597,88835.0,88818.0,0.02382315]
[1769484596799,0.117881,88833.0,88818.0,0.02382315]
[1769484596997,0.00013147,88833.0,88818.0,0.02382315]
[1769484598286,0.00013147,88833.0,88796.0,0.03382276]
[1769484598287,1.76431,88832.0,88811.0,0.29807166]
[1769484598482,1.760115,88831.0,88813.0,0.32166801]
[1769484598711,1.741662,88831.0,88813.0,0.32166801]
[1769484599285,1.741662,88831.0,88813.0,0.29807166]
[1769484599286,1.741644,88830.0,88813.0,0.29807166]
[1769484599493,1.741644,88830.0,88815.0,0.29807166]
[1769484599689,0.0002735,88831.0,88815.0,0.29807166]
[1769484600091,1.5310384,88830.0,88815.0,0.29807166]
[1769484600297,1.683957,88829.0,88815.0,0.29807166]
[1769484600498,1.711239,88830.0,88815.0,0.29807166]
[1769484600707,1.531039,88830.0,88815.0,0.29807166]
[1769484601308,1.503757,88829.0,88810.0,0.37418681]
[1769484601525,0.0002735,88830.0,88801.0,0.04081638]
[1769484601526,1.597842,88824.0,88803.0,0.32166801]
[1769484601837,0.02300669,88820.0,88796.0,0.29807166]
[1769484602039,0.29769117,88817.0,88796.0,0.29807166]
[1769484602283,0.32069786,88815.0,88796.0,0.29807166]
[1769484602506,0.32069786,88815.0,88796.0,0.32166801]
[1769484603142,0.32069786,88815.0,88797.0,0.02359635]
[1769484603297,0.03206979,88814.0,88798.0,0.29807166]
[1769484603506,0.03206979,88814.0,88800.0,0.37418681]
[1769484604188,0.32069786,88815.0,88800.0,0.37418681]
[1769484604392,0.32069786,88815.0,88798.0,0.29807166]
[1769484605394,0.32069786,88815.0,88800.0,0.37418681]
[1769484607678,0.02300669,88814.0,88793.0,0.11572]
[1769484607874,0.02300669,88811.0,88793.0,0.11572]
[1769484608038,0.03206979,88810.0,88793.0,0.41379166]
[1769484608633,0.29769117,88810.0,88793.0,0.41379166]
[1769484608951,0.02300669,88809.0,88793.0,0.41379166]
[1769484609560,0.02300669,88809.0,88793.0,0.11572]
[1769484609726,0.02300669,88809.0,88794.0,0.29807166]
[1769484610368,0.29769117,88810.0,88794.0,0.29807166]
[1769484610583,0.02976912,88809.0,88794.0,0.29807166]
[1769484611412,0.02300669,88814.0,88794.0,0.32166801]
[1769484611614,0.02300669,88814.0,88799.0,0.37418681]
[1769484611815,0.02300669,88814.0,88800.0,0.29807166]
[1769484613691,0.29769117,88818.0,88800.0,0.29807166]
[1769484613895,0.35615061,88818.0,88800.0,0.29807166]
[1769484614338,0.02300669,88817.0,88800.0,0.29807166]
[1769484614560,0.29769117,88816.0,88800.0,0.29807166]
[1769484619815,0.29769117,88816.0,88800.0,0.32166801]
[1769484621320,0.29769117,88816.0,88800.0,0.29807166]
[1769484621654,0.29769117,88816.0,88801.0,0.02465698]
[1769484624774,0.29173684,88821.0,88801.0,0.02465698]
[1769484625559,0.32556647,88821.0,88801.0,0.02465698]
[1769484626221,0.32556647,88821.0,88803.0,0.02340967]
[1769484626422,0.32556647,88821.0,88804.0,0.02340967]
[1769484628460,0.11258074,88820.0,88804.0,0.02340967]
[1769484628764,0.32556647,88821.0,88804.0,0.02340967]
[1769484628918,0.11258074,88820.0,88804.0,0.02340967]
[1769484629128,0.29173684,88821.0,88804.0,0.02340967]
[1769484629355,0.11258267,88820.0,88804.0,0.02340967]
[1769484629535,0.03382963,88820.0,88804.0,0.02340967]
[1769484630244,0.29173684,88821.0,88804.0,0.02340967]
[1769484630446,0.11259835,88820.0,88804.0,0.02340967]
[1769484630652,0.40433519,88820.0,88804.0,0.02340967]
[1769484630862,0.11259835,88819.0,88804.0,0.02340967]
[1769484631941,0.23147028,88820.0,88805.0,0.06897425]
[1769484632644,0.23147028,88820.0,88806.0,0.02340967]
[1769484635199,0.03382963,88821.0,88806.0,0.02340967]
[1769484635403,0.03382963,88821.0,88806.0,0.29214605]
[1769484635615,0.03382963,88821.0,88807.0,0.02340967]
[1769484639222,0.29173684,88823.0,88807.0,0.02340967]
[1769484639945,0.03382963,88822.0,88807.0,0.02340967]
[1769484643198,0.29173684,88823.0,88807.0,0.02340967]
[1769484643405,0.31355808,88823.0,88799.0,0.66633286]
[1769484643572,0.02182124,88822.0,88800.0,0.02340967]
[1769484643789,0.29173684,88821.0,88800.0,0.02340967]
[1769484644125,0.29173684,88819.0,88800.0,0.02340967]
[1769484644325,0.11266675,88818.0,88800.0,0.02340967]
[1769484644645,0.11266675,88817.0,88800.0,0.02340967]
[1769484644863,0.29173684,88819.0,88800.0,0.02340967]
[1769484645063,0.11266662,88818.0,88800.0,0.02340967]
[1769484645280,0.11266662,88817.0,88800.0,0.02340967]
[1769484645476,0.29173684,88819.0,88801.0,0.02340967]
[1769484645642,0.11266655,88818.0,88801.0,0.02340967]
[1769484645841,0.29173684,88819.0,88801.0,0.02340967]
[1769484645842,0.11266655,88817.0,88801.0,0.02340967]
[1769484646041,0.29173684,88819.0,88801.0,0.02340967]
[1769484646266,0.1126679,88818.0,88801.0,0.02340967]
[1769484646443,0.1126679,88817.0,88801.0,0.02340967]
[1769484646640,0.29173684,88819.0,88801.0,0.02340967]
[1769484646985,0.1126679,88818.0,88801.0,0.02340967]
[1769484647280,0.1126679,88817.0,88801.0,0.02340967]
[1769484647457,0.29173684,88819.0,88801.0,0.02340967]
[1769484647773,0.15528907,88818.0,88801.0,0.02340967]
[1769484647925,0.11266961,88817.0,88801.0,0.02340967]
[1769484648127,0.04261946,88818.0,88801.0,0.02340967]
[1769484648333,0.1126705,88817.0,88801.0,0.02340967]
[1769484648566,0.04261946,88818.0,88801.0,0.02340967]
[1769484648772,0.42179344,88817.0,88801.0,0.02340967]
[1769484648974,0.30912294,88817.0,88801.0,0.02340967]
[1769484656078,0.11268579,88816.0,88801.0,0.02340967]
[1769484656277,0.30912294,88817.0,88801.0,0.02340967]
[1769484656439,0.11268558,88816.0,88801.0,0.02340967]
[1769484656644,0.04261946,88815.0,88801.0,0.02340967]
[1769484657487,0.28580266,88814.0,88796.0,0.02494707]
[1769484657971,0.28580266,88814.0,88796.0,0.28336426]
[1769484658151,0.28580266,88814.0,88797.0,0.02494707]
[1769484659105,0.28580266,88814.0,88798.0,0.28336426]
[1769484659268,0.28580266,88814.0,88799.0,0.02494707]
[1769484662661,0.28580266,88814.0,88782.0,0.0001602]
[1769484662662,0.01,88799.0,88782.0,0.0001602]
[1769484662863,0.02432566,88798.0,88782.0,0.0001602]
[1769484663715,0.31012832,88798.0,88782.0,0.0001602]
[1769484663933,0.31012832,88798.0,88782.0,0.00020752]
[1769484664532,0.28580266,88798.0,88782.0,0.00020752]
[1769484664749,0.31012832,88797.0,88782.0,0.00020752]
[1769484665135,0.34226724,88797.0,88782.0,0.00020752]
[1769484665336,0.31012832,88797.0,88782.0,0.00020752]
[1769484666178,0.02432566,88796.0,88782.0,0.00020752]
[1769484666383,0.28580266,88795.0,88782.0,0.00020752]
[1769484666609,0.31012832,88794.0,88782.0,0.00020752]
[1769484667158,0.03383424,88804.0,88782.0,0.00020752]
[1769484667366,0.02432566,88800.0,88782.0,0.00020752]
[1769484667565,0.15320827,88803.0,88782.0,0.00020752]
[1769484667566,0.02432566,88798.0,88782.0,0.00020752]
[1769484667770,0.28580266,88797.0,88782.0,0.00020752]
[1769484667987,0.31012832,88795.0,88782.0,0.00020752]
[1769484670103,0.02432566,88794.0,88782.0,0.00020752]
[1769484670263,0.01918924,88793.0,88782.0,0.00020752]
[1769484670459,0.28580266,88792.0,88782.0,0.00020752]
[1769484670697,0.31012832,88790.0,88782.0,0.00020752]
[1769484671245,0.02432566,88789.0,88782.0,5.188e-05]
[1769484671447,0.31012832,88789.0,88782.0,5.188e-05]
[1769484671590,0.31873442,88788.0,88782.0,5.188e-05]
[1769484679313,0.34306008,88788.0,88773.0,0.0001579]
[1769484679519,0.34314416,88788.0,88773.0,0.0001579]
[1769484679935,0.28580266,88786.0,88773.0,0.0001579]
[1769484680161,0.31287646,88785.0,88773.0,0.0001579]
[1769484680733,0.32413962,88785.0,88773.0,0.0001579]
[1769484681060,0.31287646,88785.0,88773.0,0.0001579]
[1769484681261,0.32413962,88785.0,88769.0,0.02494707]
[1769484681436,0.26180209,88783.0,88769.0,0.02494707]
[1769484689224,0.26180209,88783.0,88761.0,0.02346565]
[1769484689445,0.02398365,88780.0,88761.0,0.02346565]
[1769484689648,0.03293176,88784.0,88761.0,0.02346565]
[1769484689649,0.01948636,88778.0,88761.0,0.02346565]
[1769484689853,0.27842766,88777.0,88761.0,0.02346565]
[1769484690585,0.27842766,88777.0,88760.0,0.37432892]
[1769484690786,0.27842766,88782.0,88764.0,0.02346565]
[1769484691086,0.992596,88786.0,88768.0,0.2648406]
[1769484691301,0.11227085,88785.0,88769.0,0.02346565]
[1769484691487,0.11227085,88784.0,88769.0,0.02346565]
[1769484691705,0.11227085,88783.0,88771.0,0.02346565]
[1769484691899,0.11227085,88782.0,88772.0,0.02346565]
[1769484692123,0.686859,88785.0,88772.0,0.02346565]
[1769484692398,0.27842766,88787.0,88772.0,0.02346565]
[1769484692399,0.11235547,88784.0,88772.0,0.02346565]
[1769484692614,0.11235547,88783.0,88772.0,0.02346565]
[1769484692815,0.11235547,88782.0,88772.0,0.02346565]
[1769484692949,0.11235547,88781.0,88772.0,0.02346565]
[1769484693159,0.11236558,88780.0,88772.0,0.02346565]
[1769484693409,0.714409,88786.0,88772.0,0.02346565]
[1769484693631,0.27842766,88787.0,88772.0,0.02346565]
[1769484693632,0.1123658,88785.0,88772.0,0.02346565]
[1769484693848,0.1123658,88784.0,88772.0,0.02346565]
[1769484694058,0.1123658,88783.0,88772.0,0.02346565]
[1769484694279,0.1123658,88782.0,88772.0,0.02346565]
[1769484694612,0.1123658,88781.0,88772.0,0.02346565]
[1769484694800,0.1123658,88780.0,88772.0,0.02346565]
[1769484694984,0.686812,88785.0,88772.0,0.02346565]
[1769484695144,0.11236888,88784.0,88772.0,0.02346565]
[1769484695342,0.11236888,88783.0,88772.0,0.02346565]
[1769484695575,0.11236888,88782.0,88772.0,0.02346565]
[1769484695766,0.11236888,88781.0,88772.0,0.01146565]
[1769484695973,0.710546,88786.0,88772.0,0.01146565]
[1769484696284,0.11237718,88785.0,88772.0,0.01146565]
[1769484696485,0.11237718,88784.0,88772.0,0.01146565]
[1769484696650,0.11237718,88783.0,88772.0,0.01146565]
[1769484696852,0.11237718,88782.0,88772.0,0.01146565]
[1769484697080,0.11237718,88781.0,88772.0,0.01146565]
[1769484697280,0.214863,88786.0,88772.0,0.01146565]
[1769484697484,0.11238432,88785.0,88772.0,0.01146565]
[1769484697695,0.11238432,88784.0,88772.0,0.01146565]
[1769484698040,8.408e-05,88788.0,88777.0,0.2648406]
[1769484698247,8.408e-05,88788.0,88780.0,0.02346565]
[1769484698380,8.408e-05,88788.0,88782.0,0.02346565]
[1769484702751,8.408e-05,88788.0,88785.0,0.2648406]
[1769484702954,8.408e-05,88788.0,88786.0,0.02346565]
[1769484703472,8.408e-05,88788.0,88787.0,0.2648406]
[1769484703681,8.408e-05,88788.0,88778.0,0.37432892]
[1769484703682,0.27858556,88806.0,88788.0,0.2648406]
[1769484703857,0.0001579,88806.0,88790.0,0.02346565]
[1769484707017,0.27842766,88805.0,88790.0,0.02346565]
[1769484707295,0.27842766,88805.0,88780.0,0.37432892]
[1769484707296,0.02436657,88802.0,88784.0,0.02346565]
[1769484707503,0.27842766,88799.0,88784.0,0.02346565]
[1769484708562,0.10428335,88799.0,88784.0,0.02346565]
[1769484709498,0.02436657,88802.0,88785.0,0.2648406]
[1769484709705,0.428695,88804.0,88787.0,0.28830625]
[1769484709932,0.11240318,88803.0,88787.0,0.28830625]
[1769484710129,0.27842766,88805.0,88787.0,0.28830625]
[1769484710333,0.11238877,88804.0,88787.0,0.28830625]
[1769484710536,0.11238877,88803.0,88787.0,0.28830625]
[1769484710735,0.144839,88804.0,88787.0,0.28830625]
[1769484710937,0.11238018,88803.0,88787.0,0.28830625]
[1769484711115,0.144839,88804.0,88787.0,0.28830625]
[1769484711320,0.112367,88803.0,88787.0,0.28830625]
[1769484711642,0.25804,88815.0,88790.0,0.37432892]
[1769484711820,0.1123683,88814.0,88793.0,0.2648406]
[1769484712021,0.37432892,88810.0,88794.0,0.02346565]
[1769484712214,0.168554,88808.0,88794.0,0.02346565]
[1769484712433,0.117664,88806.0,88794.0,0.02346565]
[1769484712631,0.1123683,88805.0,88794.0,0.28326902]
[1769484712822,0.214245,88813.0,88795.0,0.02441973]
[1769484713163,0.3559,88811.0,88795.0,0.02441973]
[1769484713387,0.106229,88809.0,88795.0,0.02441973]
[1769484713592,0.11235696,88808.0,88795.0,0.02441973]
[1769484713750,0.11235696,88807.0,88795.0,0.02441973]
[1769484713917,0.11235696,88806.0,88796.0,0.25980337]
[1769484714271,0.11235696,88805.0,88796.0,0.2842231]
[1769484714433,0.27842766,88814.0,88796.0,0.2842231]
[1769484714636,0.453,88812.0,88796.0,0.2842231]
[1769484714855,0.113243,88810.0,88796.0,0.2842231]
[1769484715177,0.11233881,88809.0,88796.0,0.2842231]
[1769484715350,0.11233881,88808.0,88796.0,0.25980337]
[1769484715551,0.0001401,88815.0,88800.0,0.25980337]
[1769484715760,0.0001401,88815.0,88804.0,0.25980337]
[1769484715958,0.0001401,88815.0,88805.0,0.02441973]
[1769484716199,0.0001647,88826.0,88809.0,0.02441973]
[1769484716416,0.0001647,88826.0,88811.0,0.02441973]
[1769484716417,1.575099,88825.0,88811.0,0.02441973]
[1769484716623,1.620148,88824.0,88812.0,0.25980337]
[1769484716924,0.01125809,88825.0,88812.0,0.25980337]
[1769484716925,1.583236,88825.0,88812.0,0.25980337]
[1769484717125,1.620089,88824.0,88812.0,0.25980337]
[1769484717464,0.01125859,88821.0,88811.0,0.0001401]
[1769484717669,0.01125872,88820.0,88811.0,0.0001401]
[1769484717823,0.01125885,88819.0,88811.0,0.0001401]
[1769484718022,0.02376789,88819.0,88800.0,0.25980337]
[1769484718223,0.29216114,88818.0,88800.0,0.25980337]
[1769484719509,0.29216114,88818.0,88800.0,0.2842231]
[1769484722061,0.02376789,88818.0,88801.0,0.02441973]
[1769484722255,0.02376789,88818.0,88802.0,0.25980337]
[1769484722465,0.02376789,88818.0,88802.0,0.2842231]
[1769484722863,0.00014002,88819.0,88803.0,0.02441973]
[1769484723018,0.00014002,88819.0,88804.0,0.25980337]
[1769484723202,0.00014002,88819.0,88804.0,0.2842231]
[1769484734199,0.00014002,88819.0,88809.0,0.37428297]
[1769484734401,0.00014002,88819.0,88810.0,0.25980337]
[1769484734603,0.26839325,88835.0,88810.0,0.25980337]
[1769484734901,1.472014,88829.0,88812.0,0.25980337]
[1769484735103,1.472063,88827.0,88812.0,0.25980337]
[1769484735307,1.468811,88825.0,88812.0,0.25980337]
[1769484735517,1.468886,88829.0,88812.0,0.25980337]
[1769484735713,0.39805086,88830.0,88812.0,0.25980337]
[1769484735714,1.468875,88827.0,88812.0,0.25980337]
[1769484735959,1.468839,88825.0,88812.0,0.25980337]
[1769484736132,1.468886,88829.0,88812.0,0.25980337]
[1769484736336,1.468875,88827.0,88812.0,0.25980337]
[1769484736536,1.468811,88825.0,88812.0,0.25980337]
[1769484736737,1.474766,88829.0,88812.0,0.25980337]
[1769484736942,1.471701,88827.0,88812.0,0.25980337]
[1769484737143,0.02376789,88829.0,88812.0,0.25980337]
[1769484737144,1.470384,88825.0,88812.0,0.25980337]
[1769484737337,0.02376789,88829.0,88812.0,0.25980337]
[1769484737338,1.471106,88828.0,88812.0,0.25980337]
[1769484737541,1.46705,88826.0,88812.0,0.28725302]
[1769484737743,1.44449,88824.0,88812.0,0.25980337]
[1769484738099,1.467114,88828.0,88812.0,0.2842231]
[1769484738469,1.392981,88828.0,88812.0,0.2842231]
[1769484739849,1.392259,88829.0,88812.0,0.2842231]
[1769484740074,1.366445,88827.0,88812.0,0.2842231]
[1769484740249,1.392872,88828.0,88812.0,0.2842231]
[1769484741187,1.13453207,88827.0,88812.0,0.35008771]
[1769484741563,1.366445,88827.0,88812.0,0.35008771]
[1769484741770,1.137945,88827.0,88812.0,0.35008771]
[1769484741989,0.02352435,88826.0,88810.0,0.00014002]
[1769484742196,0.02352435,88823.0,88810.0,0.00014002]
[1769484743717,0.26627523,88822.0,88810.0,0.00014002]
[1769484744244,0.24202397,88822.0,88810.0,0.00014002]
[1769484744444,0.0242024,88821.0,88810.0,0.00014002]
[1769484744642,0.02425126,88823.0,88810.0,0.00014002]
[1769484744944,0.11257448,88822.0,88810.0,0.00014002]
[1769484745141,0.11257448,88821.0,88811.0,0.25906967]
[1769484745349,0.11257448,88821.0,88810.0,0.00014002]
[1769484745350,0.02425126,88819.0,88810.0,0.00014002]
[1769484749142,1.208305,88827.0,88811.0,0.25906967]
[1769484749344,1.212392,88825.0,88811.0,0.25906967]
[1769484749673,1.154558,88823.0,88811.0,0.25906967]
[1769484749872,0.11267571,88822.0,88811.0,0.25906967]
[1769484750122,0.37428297,88830.0,88811.0,0.25906967]
[1769484750123,0.11267571,88821.0,88811.0,0.25906967]
[1769484750333,0.11267571,88820.0,88811.0,0.25906967]
[1769484750537,0.11267571,88819.0,88811.0,0.25906967]
[1769484750710,0.02425126,88824.0,88811.0,0.25906967]
[1769484750859,0.11269858,88823.0,88811.0,0.25906967]
[1769484751059,0.11269858,88822.0,88811.0,0.25906967]
[1769484751283,0.11269858,88821.0,88811.0,0.25906967]
[1769484751505,0.11269858,88820.0,88811.0,0.25906967]
[1769484751706,0.11269858,88819.0,88811.0,0.25906967]
[1769484751906,0.11269858,88818.0,88811.0,0.25906967]
[1769484752109,0.02425126,88824.0,88811.0,0.25906967]
[1769484752110,0.11269858,88817.0,88811.0,0.25906967]
[1769484752309,0.11269858,88816.0,88811.0,0.25906967]
[1769484752510,0.02425126,88824.0,88811.0,0.25906967]
[1769484752745,0.11272381,88823.0,88811.0,0.25906967]
[1769484752889,0.11272381,88822.0,88811.0,0.25906967]
[1769484753091,0.11272381,88821.0,88811.0,0.25906967]
[1769484753290,0.11272381,88820.0,88811.0,0.25906967]
[1769484753528,0.11272381,88819.0,88811.0,0.25906967]
[1769484753732,0.11272381,88818.0,88811.0,0.25906967]
[1769484753936,0.11272381,88817.0,88810.0,0.00014002]
[1769484754090,0.12642132,88816.0,88810.0,0.00014002]
[1769484754293,0.01369751,88816.0,88810.0,0.00014002]
[1769484754516,0.02425126,88823.0,88810.0,0.00014002]
[1769484754716,0.11272217,88822.0,88810.0,0.00014002]
[1769484754895,0.11272217,88821.0,88810.0,0.00014002]
[1769484755101,0.11272217,88820.0,88810.0,0.00014002]
[1769484755308,0.11272217,88819.0,88810.0,0.00014002]
[1769484755654,0.11272217,88818.0,88810.0,0.00014002]
[1769484766821,0.11272217,88817.0,88810.0,0.00014002]
[1769484767024,0.11272217,88816.0,88810.0,0.00014002]
[1769484767176,0.02425126,88822.0,88810.0,0.00014002]
[1769484767394,0.11271455,88821.0,88810.0,0.00014002]
[1769484767583,0.15061353,88820.0,88810.0,0.00014002]
[1769484767747,0.11271455,88819.0,88810.0,0.00014002]
[1769484767948,0.11271455,88818.0,88810.0,0.00014002]
[1769484768307,0.11271455,88817.0,88810.0,0.00014002]
[1769484768486,0.11271455,88816.0,88810.0,0.00014002]
[1769484768685,0.03789898,88820.0,88810.0,0.00014002]
[1769484769059,0.11271454,88819.0,88810.0,0.00014002]
[1769484769242,0.11271454,88818.0,88810.0,0.00014002]
[1769484769441,0.11271454,88817.0,88810.0,0.00014002]
[1769484769647,0.11271454,88816.0,88810.0,0.00014002]
[1769484769850,0.03789898,88820.0,88810.0,0.00014002]
[1769484770052,0.11271985,88819.0,88810.0,0.00014002]
[1769484770403,0.11271985,88819.0,88800.0,0.49000297]
[1769484770404,0.03789898,88820.0,88779.0,0.02331661]
[1769484770405,0.67610574,88780.0,88779.0,0.02331661]
[1769484770620,0.45989673,88776.0,88772.0,0.28238628]
[1769484770823,0.42605252,88776.0,88775.0,0.02331661]
[1769484770966,0.39220831,88776.0,88775.0,0.02331661]
[1769484771321,0.39220831,88776.0,88773.0,0.02704]
[1769484771322,0.32451989,88776.0,88773.0,0.02704]
[1769484771482,0.17548049,88776.0,88775.0,0.11572]
[1769484771668,0.14163628,88776.0,88775.0,0.11572]
[1769484771871,0.10779207,88776.0,88775.0,0.11572]
[1769484772067,0.07394786,88776.0,88775.0,0.1158586]
[1769484772302,0.04010365,88776.0,88775.0,0.1158586]
[1769484772505,0.01126024,88808.0,88775.0,0.1158586]
[1769484772506,0.37442927,88800.0,88775.0,0.23403872]
[1769484772744,0.37442927,88800.0,88776.0,0.36494891]
[1769484772745,0.02487625,88796.0,88776.0,0.36494891]
[1769484772924,0.02487625,88796.0,88780.0,0.37428297]
[1769484773126,0.03613801,88796.0,88780.0,0.37428297]
[1769484773326,0.03613801,88796.0,88777.0,0.24922891]
[1769484773327,0.02487625,88794.0,88777.0,0.24922891]
[1769484773591,0.01126227,88792.0,88776.0,0.11572]
[1769484773790,0.37456928,88800.0,88776.0,0.10572]
[1769484773791,0.24593217,88789.0,88776.0,0.10572]
[1769484774053,0.24593217,88789.0,88771.0,0.03155907]
[1769484774054,0.02487625,88786.0,88771.0,0.03155907]
[1769484774670,0.02487625,88786.0,88769.0,0.24922891]
[1769484774871,0.02487625,88786.0,88770.0,0.37428297]
[1769484775070,0.02487625,88786.0,88771.0,0.24922891]
[1769484777618,0.24593217,88788.0,88771.0,0.24922891]
[1769484778291,0.24593217,88788.0,88771.0,0.27400377]
[1769484778778,0.27301301,88788.0,88771.0,0.27400377]
[1769484778943,0.02487625,88791.0,88778.0,0.37454323]
[1769484779144,0.24593217,88794.0,88778.0,0.37454323]
[1769484781879,9.88e-05,88798.0,88778.0,0.37454323]
[1769484782084,9.88e-05,88798.0,88781.0,0.24922891]
[1769484782280,9.88e-05,88798.0,88784.0,0.02477486]
[1769484782711,9.88e-05,88798.0,88784.0,0.05985439]
[1769484783609,9.88e-05,88798.0,88785.0,0.02477486]
[1769484787296,9.88e-05,88798.0,88786.0,0.24922891]
[1769484787495,9.88e-05,88798.0,88789.0,0.02477486]
[1769484789623,9.88e-05,88798.0,88779.0,0.24922891]
[1769484789825,0.02487625,88796.0,88779.0,0.24922891]
[1769484790164,0.24593217,88795.0,88776.0,0.02477486]
[1769484790541,0.25719406,88795.0,88777.0,0.02477486]
[1769484790748,0.01126202,88794.0,88777.0,0.02477486]
[1769484790948,0.25719406,88795.0,88777.0,0.02477486]
[1769484791346,0.24593217,88795.0,88777.0,0.02477486]
[1769484791586,0.24593217,88795.0,88778.0,0.02477486]
[1769484792547,0.24593217,88795.0,88778.0,0.24922891]
[1769484792771,0.24593217,88795.0,88779.0,0.02477486]
[1769484792982,0.24593217,88795.0,88779.0,0.24922891]
[1769484793183,0.24593217,88795.0,88780.0,0.39931809]
[1769484793382,9.88e-05,88798.0,88781.0,0.02477486]
[1769484793548,9.88e-05,88798.0,88782.0,0.02477486]
[1769484794177,9.88e-05,88798.0,88780.0,0.37454323]
[1769484794178,9.88e-05,88798.0,88784.0,0.24922891]
[1769484794350,9.88e-05,88798.0,88785.0,0.02477486]
[1769484799082,0.24603097,88798.0,88780.0,0.39931809]
[1769484799891,0.01126164,88797.0,88780.0,0.39931809]
[1769484800104,0.25719381,88797.0,88780.0,0.39931809]
[1769484800307,0.31941782,88796.0,88780.0,0.39931809]
[1769484800503,0.04796704,88795.0,88780.0,0.39931809]
[1769484801410,0.04796704,88795.0,88780.0,0.37454323]
[1769484801627,0.04796704,88795.0,88781.0,0.02379901]
[1769484803873,0.30837508,88791.0,88769.0,0.34157847]
[1769484804017,0.30837508,88789.0,88770.0,0.02275396]
[1769484804460,0.01126291,88787.0,88770.0,0.02275396]
[1769484804841,0.01126291,88787.0,88770.0,0.39729719]
[1769484805243,0.01126291,88787.0,88770.0,0.42885626]
[1769484805664,0.01126291,88787.0,88770.0,0.74768077]
[1769484806393,0.01126291,88787.0,88770.0,0.7161217]
[1769484806592,0.02481077,88790.0,88754.0,0.03155907]
[1769484806593,0.30837508,88784.0,88764.0,0.34157847]
[1769484806798,0.02481077,88785.0,88744.0,0.1476]
[1769484806799,0.02481077,88781.0,88756.0,0.34157847]
[1769484807000,0.30837508,88778.0,88756.0,0.34157847]
[1769484807143,0.30837508,88776.0,88756.0,0.34157847]
[1769484807346,0.33318585,88776.0,88760.0,0.37454323]
[1769484807543,0.34445015,88776.0,88760.0,0.37454323]
[1769484807741,0.02255124,88775.0,88760.0,0.37454323]
[1769484808554,0.03381567,88775.0,88760.0,0.37454323]
[1769484808761,0.34219075,88775.0,88756.0,0.34157847]
[1769484810289,0.34219075,88775.0,88760.0,0.37454323]
[1769484810693,0.02481077,88776.0,88760.0,0.69336774]
[1769484811086,0.33318585,88781.0,88760.0,0.7161217]
[1769484815193,0.01126379,88780.0,88760.0,0.7161217]
[1769484816984,0.01126379,88780.0,88760.0,0.34157847]
[1769484816985,0.30837508,88779.0,88760.0,0.34157847]
[1769484817200,0.33318585,88779.0,88760.0,0.34157847]
[1769484817501,0.30837508,88778.0,88760.0,0.34157847]
[1769484818361,0.01126455,88774.0,88760.0,0.34157847]
[1769484818966,0.01126468,88773.0,88760.0,0.34157847]
[1769484819361,0.01126455,88774.0,88760.0,0.34157847]
[1769484819787,0.33318585,88779.0,88760.0,0.34157847]
[1769484820003,0.33318585,88779.0,88760.0,0.7161217]
[1769484820199,0.33328042,88779.0,88760.0,0.7161217]
[1769484820348,0.30846965,88779.0,88760.0,0.7161217]
[1769484821366,9.457e-05,88779.0,88769.0,0.39729719]
[1769484821580,9.457e-05,88779.0,88770.0,0.02275396]
[1769484822210,9.457e-05,88779.0,88771.0,0.02275396]
[1769484822712,9.457e-05,88779.0,88773.0,0.02275396]
[1769484823352,9.457e-05,88779.0,88773.0,0.02212023]
[1769484826372,0.01766693,88793.0,88779.0,9.457e-05]
[1769484826580,0.1122766,88792.0,88782.0,0.31882451]
[1769484826777,0.1122766,88791.0,88783.0,0.02275396]
[1769484826944,0.0112624,88791.0,88783.0,0.02275396]
[1769484827150,0.01126252,88790.0,88783.0,0.02275396]
[1769484827759,0.01126265,88789.0,88783.0,0.02275396]
[1769484827963,0.01126252,88790.0,88783.0,0.02275396]
[1769484828565,0.0112624,88791.0,88783.0,0.02275396]
[1769484829310,0.11232087,88790.0,88783.0,0.02275396]
[1769484829547,0.0112624,88791.0,88783.0,0.02275396]
[1769484829775,0.11232087,88790.0,88783.0,0.02275396]
[1769484829904,0.0112624,88791.0,88783.0,0.02275396]
[1769484830110,0.11232087,88790.0,88783.0,0.02275396]
[1769484830322,0.0112624,88791.0,88783.0,0.02275396]
[1769484830540,0.11233808,88790.0,88783.0,0.02275396]
[1769484830751,0.0112624,88791.0,88783.0,0.02275396]
[1769484830959,0.11233428,88790.0,88783.0,0.02275396]
[1769484831157,0.11235301,88789.0,88783.0,0.02275396]
[1769484831326,0.01126278,88788.0,88783.0,0.02275396]
[1769484831836,0.01126265,88789.0,88783.0,0.02275396]
[1769484832464,0.01126265,88789.0,88777.0,0.31882451]
[1769484832674,0.01126265,88789.0,88778.0,0.02395833]
[1769484833036,0.01775107,88793.0,88778.0,0.02395833]